fUST/lending_fUST_20240817
["ID","MTS","AMOUNT","RATE_DAILY","PERIOD"]
[335102712,1723825839402,-1134.2462,0.016,119]
[335102713,1723825839411,-1392.0,0.016,120]
[335102714,1723825839420,-3000.0,0.016,120]
[335102715,1723825839429,-151.0,0.01611123,120]
[335102716,1723825839439,-200.0,0.01634,120]
[335102717,1723825839448,-1256.54515271,0.016578,120]
[335102718,1723825839457,-803.92976777,0.01694644,120]
[335102719,1723825839466,-1250.0,0.017,120]
[335102720,1723825839475,-225.0,0.017,120]
[335102721,1723825839484,-1392.0,0.017,120]
[335102722,1723825839493,-1246.839437,0.0173,91]
[335102723,1723825839503,-1376.11,0.0175156,64]
[335102724,1723825839510,-803.92976777,0.01792858,120]
[335102725,1723825839518,-7563.58417535,0.0179999,120]
[335102726,1723825839526,-1250.0,0.018,120]
[335102727,1723825839535,-1392.0,0.018,120]
[335102728,1723825839543,-200.0,0.0182,120]
[335102729,1723825839551,-803.92976777,0.01891071,120]
[335102730,1723825839559,-1250.0,0.019,120]
[335102731,1723825839569,-1392.0,0.019,120]
[335102732,1723825839579,-200.0,0.0193,120]
[335102733,1723825839588,-12868.0,0.01933,120]
[335102734,1723825839596,-151.0,0.01988904,120]
[335102735,1723825839605,-803.92976777,0.01989286,120]
[335102736,1723825839612,-155.0,0.02,120]
[335102737,1723825839622,-2500.0,0.02,120]
[335102738,1723825839631,-150.0,0.02,120]
[335102739,1723825839642,-450.0,0.02,120]
[335102740,1723825839651,-1182.65176,0.02,68]
[335102741,1723825839662,-3000.0,0.02,90]
[335102742,1723825839673,-1498.27437768,0.02,120]
[335102743,1723825839682,-1392.0,0.02,120]
[335102744,1723825839692,-1000.0,0.02,120]
[335102745,1723825839702,-7522.97,0.02,60]
[335102746,1723825839712,-200.0,0.02012,120]
[335102747,1723825839723,-803.92976777,0.0208759,120]
[335102748,1723825839734,-2500.0,0.021,120]
[335102749,1723825839744,-1392.0,0.021,120]
[335102750,1723825839753,-200.0,0.02143,120]
[335102751,1723825839764,-803.92976777,0.02185715,120]
[335102752,1723825839774,-2500.0,0.022,120]
[335102753,1723825839786,-1392.0,0.022,120]
[335102754,1723825839796,-1000.0,0.022009,120]
[335102755,1723825839806,-358.35473781,0.02201194,28]
[335102756,1723825839816,-1349.3,0.022135,72]
[335102757,1723825839827,-155.0,0.02222,120]
[335102758,1723825839837,-200.0,0.02243,120]
[335102759,1723825839850,-803.92976777,0.0228393,120]
[335102760,1723825839862,-7563.58417535,0.0229999,120]
[335102761,1723825839873,-1392.0,0.023,120]
[335102762,1723825839887,-2500.0,0.023,120]
[335102763,1723825839899,-225.0,0.023,120]
[335102764,1723825839910,-200.0,0.0234,120]
[335102765,1723825839922,-151.0,0.02366685,120]
[335102766,1723825839932,-1638.4,0.023762,109]
[335102767,1723825839943,-803.92976777,0.02382144,120]
[335102768,1723825839954,-2500.0,0.024,120]
[335102769,1723825839965,-1642.0,0.024,97]
[335102770,1723825839976,-1392.0,0.024,120]
[335102771,1723825839986,-200.0,0.0242,120]
[335102772,1723825839997,-1686.242886,0.0246,105]
[335102773,1723825840007,-200.0,0.0247474,120]
[335102774,1723825840017,-803.92976777,0.02480358,120]
[335102775,1723825840028,-2500.0,0.025,120]
[335102776,1723825840038,-150.0,0.025,120]
[335102777,1723825840048,-1498.27437768,0.025,120]
[335102778,1723825840059,-1392.0,0.025,120]
[335102779,1723825840069,-200.0,0.0253,120]
[335102780,1723825840079,-803.92976777,0.02578571,120]
[335102781,1723825840090,-450.0,0.026,120]
[335102782,1723825840099,-1392.0,0.026,120]
[335102783,1723825840111,-7522.97,0.026,60]
[335102784,1723825840121,-200.0,0.0263,120]
[335102785,1723825840134,-803.92976777,0.02676787,120]
[335102786,1723825840152,-2500.0,0.027,120]
[335102788,1723825840165,-1392.0,0.027,120]
[335102789,1723825840176,-151.0,0.02744466,120]
[335102790,1723825840186,-803.92976777,0.02775225,120]
[335102791,1723825840197,-1392.0,0.028,120]
[335102792,1723825840208,-2500.0,0.028,120]
[335102793,1723825840218,-200.0,0.0282,120]
[335102794,1723825840229,-151.0,0.0282,120]
[335102795,1723825840239,-803.92976777,0.02873214,120]
[335102796,1723825840250,-2500.0,0.029,120]
[335102797,1723825840260,-225.0,0.029,120]
[335102798,1723825840271,-1392.0,0.029,120]
[335102799,1723825840282,-2000.0,0.029,120]
[335102800,1723825840293,-358.35473781,0.0290087,28]
[335102801,1723825840303,-200.0,0.0293,120]
[335102802,1723825840314,-7563.58417535,0.0293299,120]
[335102804,1723825840326,-12868.0,0.02933,120]
[335102805,1723825840337,-803.92976777,0.02971429,120]
[335102806,1723825840348,-4549.01373868,0.03,7]
[335102807,1723825840359,-155.0,0.03,120]
[335102808,1723825840374,-5000.0,0.03,120]
[335102810,1723825840392,-4000.0,0.03,120]
[335102812,1723825840404,-150.0,0.03,120]
[335102813,1723825840415,-1537.26,0.03,68]
[335102814,1723825840426,-1498.27437768,0.03,120]
[335102815,1723825840437,-1392.0,0.03,120]
[335102816,1723825840450,-201.57137716,0.03,2]
[335102817,1723825840461,-1000.0,0.03,120]
[335102818,1723825840474,-200.0,0.0302,120]
[335102819,1723825840486,-803.92976777,0.03069643,120]
[335102820,1723825840498,-1659.3,0.0307685,109]
[335102821,1723825840508,-5000.0,0.031,120]
[335102822,1723825840520,-1392.0,0.031,120]
[335102823,1723825840531,-7522.97,0.031,60]
[335102824,1723825840542,-200.0,0.0311,120]
[335102826,1723825840554,-151.0,0.03122247,120]
[335102828,1723825840566,-803.92976777,0.03167858,120]
[335102830,1723825840581,-5000.0,0.032,120]
[335102831,1723825840594,-200.0,0.032,120]
[335102832,1723825840605,-1086.906,0.032,66]
[335102833,1723825840617,-225.0,0.032,120]
[335102834,1723825840629,-1392.0,0.032,120]
[335102835,1723825840651,-803.92976777,0.03266072,120]
[335102836,1723825840663,-5000.0,0.033,120]
[335102837,1723825840674,-1392.0,0.033,120]
[335102838,1723825840685,-200.0,0.0332,120]
[335102839,1723825840695,-151.0,0.033232,120]
[335102840,1723825840706,-1000.0,0.033289,120]
[335102841,1723825840717,-155.0,0.03333,120]
[335102842,1723825840728,-2000.0,0.0334,120]
[335102843,1723825840738,-803.92976777,0.03364286,120]
[335102844,1723825840748,-5000.0,0.034,120]
[335102845,1723825840759,-1392.0,0.034,120]
[335102846,1723825840770,-803.92976777,0.03462528,120]
[335102847,1723825840785,-15127.1683507,0.03489988,120]
[335102848,1723825840797,-77585.3,0.03489998,120]
[335102849,1723825840808,-1081.58,0.0349,60]
[335102850,1723825840819,-362.44,0.0349,120]
[335102851,1723825840829,-5000.0,0.035,120]
[335102852,1723825840840,-225.0,0.035,120]
[335102853,1723825840850,-155.00529432,0.035,120]
[335102854,1723825840861,-518.28262991,0.035,120]
[335102855,1723825840871,-1498.27437768,0.035,120]
[335102856,1723825840881,-1392.0,0.035,120]
[335102857,1723825840897,-7522.97,0.035,60]
[335102859,1723825840907,-151.0,0.03500027,120]
[335102861,1723825840917,-200.0,0.03523,120]
[335102862,1723825840927,-528.88,0.0356,110]
[335102863,1723825840937,-803.92976777,0.03560714,120]
[335102864,1723825840947,-5000.0,0.036,120]
[335102865,1723825840958,-1392.0,0.036,120]
[335102866,1723825840968,-358.35473781,0.03600547,28]
[335102867,1723825840978,-200.0,0.03648,120]
[335102868,1723825840988,-803.92976777,0.0365893,120]
[335102869,1723825840998,-5000.0,0.037,120]
[335102870,1723825841008,-1600.525566,0.03727217,63]
[335102871,1723825841017,-200.0,0.03732,120]
[335102872,1723825841027,-803.92976777,0.03757143,120]
[335102873,1723825841038,-7563.58417535,0.0379999,120]
[335102874,1723825841048,-5000.0,0.038,120]
[335102875,1723825841057,-3000.0,0.038,60]
[335102876,1723825841067,-225.0,0.038,120]
[335102877,1723825841077,-10065.3487725,0.038,120]
[335102878,1723825841087,-1081.58,0.038,60]
[335102879,1723825841097,-362.44,0.038,120]
[335102880,1723825841107,-200.0,0.0382,120]
[335102881,1723825841117,-100000.0,0.0384,120]
[335102882,1723825841127,-803.92976777,0.03855357,120]
[335102883,1723825841139,-279.35254696,0.03877708,30]
[335102884,1723825841149,-151.0,0.03877808,120]
[335102885,1723825841159,-5000.0,0.039,120]
[335102886,1723825841168,-1951.9,0.039,111]
[335102887,1723825841177,-2078.0,0.039,120]
[335102888,1723825841191,-2000.0,0.039,120]
[335102889,1723825841202,-200.0,0.03924,120]
[335102890,1723825841212,-12868.0,0.03933,120]
[335102891,1723825841221,-7522.97,0.0394,60]
[335102892,1723825841231,-803.92976777,0.03953571,120]
[335102893,1723825841241,-155.0,0.04,120]
[335102894,1723825841251,-10000.0,0.04,120]
[335102895,1723825841261,-3000.0,0.04,120]
[335102896,1723825841271,-153.72851572,0.04,120]
[335102897,1723825841280,-3000.0,0.04,90]
[335102898,1723825841290,-1498.27437768,0.04,120]
[335102899,1723825841300,-1000.0,0.04,120]
[335102900,1723825841309,-279.35254695,0.04002396,30]
[335102901,1723825841319,-200.0,0.04016,120]
[335102902,1723825841328,-1352.9,0.04027,116]
[335102903,1723825841338,-803.92976777,0.04051786,120]
[335102904,1723825841348,-10000.0,0.041,120]
[335102905,1723825841357,-200.0,0.041,120]
[335102906,1723825841367,-1081.58,0.041,60]
[335102907,1723825841376,-362.44,0.041,120]
[335102908,1723825841390,-200.0,0.04124,120]
[335102909,1723825841399,-279.35254695,0.04127084,30]
[335102910,1723825841409,-803.92976777,0.04155655,120]
[335102911,1723825841419,-151.0,0.0418,120]
[335102912,1723825841429,-10000.0,0.042,120]
[335102913,1723825841439,-200.0,0.042,120]
[335102914,1723825841449,-1000.0,0.042045,120]
[335102915,1723825841459,-803.92976777,0.04248214,120]
[335102916,1723825841470,-279.35254695,0.04251772,30]
[335102917,1723825841480,-151.0,0.04255589,120]
[335102918,1723825841490,-10000.0,0.043,120]
[335102919,1723825841501,-160.0,0.043,120]
[335102920,1723825841511,-358.35473781,0.04300223,28]
[335102921,1723825841523,-200.0,0.04308,120]
[335102922,1723825841533,-1081.58,0.0431,60]
[335102923,1723825841543,-362.44,0.0431,120]
[335102924,1723825841554,-180.0,0.04331499,120]
[335102925,1723825841565,-7522.97,0.0434,60]
[335102926,1723825841575,-803.92976777,0.0434643,120]
[335102927,1723825841586,-1348.435,0.04361,76]
[335102928,1723825841595,-279.35254695,0.0437646,30]
[335102929,1723825841605,-10000.0,0.044,120]
[335102930,1723825841619,-2323.0,0.044,120]
[335102931,1723825841628,-155.0,0.04444,120]
[335102932,1723825841641,-803.92976777,0.04444644,120]
[335102933,1723825841652,-10000.0,0.045,120]
[335102934,1723825841662,-1498.27437768,0.045,120]
[335102935,1723825841672,-279.35254695,0.04501148,30]
[335102936,1723825841682,-803.92976777,0.04542858,120]
[335102937,1723825841695,-10000.0,0.046,120]
[335102938,1723825841705,-200.0,0.046,120]
[335102939,1723825841715,-225.0,0.046,120]
[335102940,1723825841725,-3000.0,0.046,120]
[335102941,1723825841735,-279.35254695,0.04625836,30]
[335102942,1723825841745,-151.0,0.0463337,120]
[335102943,1723825841755,-803.92976777,0.04641071,120]
[335102944,1723825841766,-2015.0,0.046628,66]
[335102945,1723825841777,-10000.0,0.047,120]
[335102946,1723825841787,-200.0,0.0473,120]
[335102947,1723825841797,-803.92976777,0.04739287,120]
[335102948,1723825841806,-279.35254695,0.04750524,30]
[335102949,1723825841817,-10000.0,0.048,120]
[335102950,1723825841826,-803.92976777,0.0483758,120]
[335102951,1723825841836,-200.0,0.04838,120]
[335102952,1723825841846,-468.9876,0.0488,90]
[335102953,1723825841856,-1081.58,0.0488,60]
[335102954,1723825841865,-362.44,0.0488,120]
[335102955,1723825841875,-1768.69708,0.0489,111]
[335102956,1723825841888,-7563.58417535,0.0489999,120]
[335102957,1723825841898,-10000.0,0.049,120]
[335102958,1723825841907,-10500.0,0.049,120]
[335102959,1723825841917,-225.0,0.049,120]
[335102960,1723825841927,-2000.0,0.049,120]
[335102961,1723825841937,-200.0,0.04922,120]
[335102962,1723825841946,-1000.0,0.049273,120]
[335102963,1723825841956,-7522.97,0.0493,60]
[335102964,1723825841965,-8029.43020705,0.04933,120]
[335102965,1723825842023,-1512.81684643,0.0005,60]
[335102966,1723825842035,-1362.18224202,0.0005,60]
[335102967,1723825842048,-1469.77324276,0.0005,60]
[335102968,1723825842058,-1998.004684,0.00273973,120]
[335102969,1723825842068,-1998.004684,0.00273973,120]
[335102970,1723825842079,-1998.004684,0.00273973,120]
[335102971,1723825842092,-279.35254695,0.04875212,30]
[335102972,1723825842103,-4838.56979295,0.04933,120]
[335102973,1723825842113,-803.92976777,0.04935715,120]
[335102974,1723825842124,-358.35473781,0.049999,28]
[335102975,1723825842133,-155.0,0.05,120]
[335102976,1723825842149,-20000.0,0.05,120]
[335102977,1723825842159,-1460.253,0.05,80]
[335102978,1723825842170,-237.62,0.05,120]
[335102979,1723825842180,-3000.0,0.05,90]
[335102980,1723825842190,-965.50307497,0.05,30]
[335102981,1723825842202,-1498.22369158,0.05,120]
[335102982,1723825842213,-6425.15041862,0.05,120]
[335102983,1723825842224,-4000.0,0.05,120]
[335102984,1723825842236,-200.0,0.05008,120]
[335102985,1723825842247,-151.0,0.05011151,120]
[335102986,1723825842258,-1630.0,0.0503,85]
[335102987,1723825842270,-803.92976777,0.05033929,120]
[335102988,1723825842280,-20000.0,0.051,120]
[335102989,1723825842291,-803.92976777,0.05132143,120]
[335102990,1723825842307,-200.0,0.05146,120]
[335102991,1723825842318,-20000.0,0.052,120]
[335102992,1723825842329,-200.0,0.052,120]
[335102993,1723825842339,-1081.58,0.052,60]
[335102994,1723825842350,-362.44,0.052,120]
[335102995,1723825842360,-803.92976777,0.05230358,120]
[335102996,1723825842453,-200.0,0.05246,120]
[335102997,1723825842464,-20000.0,0.053,120]
[335102998,1723825842476,-1423.774,0.053,111]
[335102999,1723825842487,-803.92976777,0.05328571,120]
[335103000,1723825842498,-200.0,0.05342,120]
[335103001,1723825842511,-151.0,0.05388932,120]
[335103002,1723825842522,-7563.58417535,0.0539989,120]
[335103003,1723825842533,-3000.0,0.053999,120]
[335103004,1723825842544,-20000.0,0.054,120]
[335103005,1723825842554,-1606.114325,0.054,98]
[335103006,1723825842566,-200.0,0.0542,120]
[335103007,1723825842579,-803.92976777,0.05426787,120]
[335103008,1723825842593,-1729.1,0.0547253,79]
[335103009,1723825842603,-20000.0,0.055,120]
[335103010,1723825842613,-200.0,0.055,120]
[335103011,1723825842626,-1498.22369158,0.055,120]
[335103012,1723825842636,-803.92976777,0.05525263,120]
[335103013,1723825842654,-200.0,0.0553,120]
[335103014,1723825842664,-151.0,0.0554,120]
[335103015,1723825842676,-7522.97,0.0554,60]
[335103016,1723825842688,-155.0,0.05555,120]
[335103017,1723825842698,-1000.0,0.055681,120]
[335103018,1723825842708,-1081.58,0.0557,60]
[335103019,1723825842719,-362.44,0.0557,120]
[335103020,1723825842731,-2986.8171375,0.055999,120]
[335103021,1723825842742,-20000.0,0.056,120]
[335103022,1723825842753,-200.0,0.05617,120]
[335103023,1723825842765,-803.92976777,0.05623215,120]
[335103024,1723825842775,-2988.49604605,0.056999,120]
[335103025,1723825842786,-20000.0,0.057,120]
[335103026,1723825842796,-803.92976777,0.05721429,120]
[335103027,1723825842807,-200.0,0.0573,120]
[335103028,1723825842818,-8610.33677987,0.0573876,120]
[335103029,1723825842829,-200.0,0.0574747,120]
[335103030,1723825842839,-151.0,0.05766712,120]
[335103031,1723825842848,-155.0,0.05777,120]
[335103032,1723825842858,-3456.26241282,0.057999,120]
[335103033,1723825842868,-7563.58417535,0.0579999,120]
[335103034,1723825842878,-20000.0,0.058,120]
[335103035,1723825842893,-200.0,0.058,120]
[335103036,1723825842902,-200.0,0.058,120]
[335103037,1723825842912,-31000.0,0.058,120]
[335103038,1723825842921,-7522.97,0.058,60]
[335103039,1723825842931,-1081.58,0.058,60]
[335103040,1723825842941,-362.44,0.058,120]
[335103041,1723825842951,-803.92976777,0.05819644,120]
[335103042,1723825842962,-3917.32348211,0.058999,120]
[335103043,1723825842972,-20000.0,0.059,120]
[335103044,1723825842982,-2000.0,0.059,120]
[335103045,1723825842991,-56000.0,0.059,120]
[335103046,1723825843002,-3000.0,0.059,120]
[335103047,1723825843011,-200.0,0.0591,120]
[335103048,1723825843021,-803.92976777,0.05917858,120]
[335103049,1723825843031,-12868.0,0.05933,120]
[335103050,1723825843042,-7563.58417535,0.0593875,120]
[335103051,1723825843052,-8126.79840218,0.0593876,120]
[335103052,1723825843061,-154630.91121437,0.059795,120]
[335103112,1723825848281,-24.11184302,0.00273973,120]
[335103113,1723825848312,-326.21155998,0.00273973,120]
[335103114,1723825848323,-350.323403,0.00273973,120]
[335103124,1723826026422,500.0,7.911e-05,2]
[335103127,1723826309093,236.31300836,9.589e-05,2]
[335103129,1723826524708,1067.06028282,0.00010081,2]
[335103157,1723826737197,-223.31574828,0.00012219,2]
[335103158,1723826737219,-156.81279309,0.00013333,2]
[335103159,1723826737240,-156.81279309,0.00013333,2]
[335103160,1723826737262,-157.98285694,0.00013496,2]
[335103161,1723826737284,-301.4340064,0.00013599,2]
[335103162,1723826737306,-159.96301472,0.00014245,2]
[335103163,1723826737328,-165.878951,0.00014247,2]
[335103164,1723826737350,-952.97302419,0.00024818,2]
[335103165,1723826737371,-500.0,0.00027136,2]
[335103166,1723826737393,-500.0,0.00027773,2]
[335103167,1723826737416,-53.82300194,0.00028425,2]
[335103171,1723826825975,-155.72824087,0.00015,2]
[335103172,1723826825998,-4901.0422108,0.00027347,2]
[335103173,1723826826019,-589.1591388,0.00028425,2]
[335103174,1723826826046,-23177.15654,0.00028426,2]
[335103175,1723826826067,-3000.0,0.000299,2]
[335103176,1723826826093,-3000.0,0.0002991,2]
[335103177,1723826826120,-3000.0,0.0002992,2]
[335103178,1723826826147,-3000.0,0.0002993,2]
[335103179,1723826826173,-5552.514125,0.0002994,2]
[335103180,1723826826200,-453.0,0.0003,120]
[335103181,1723826826227,-151.0,0.0003,120]
[335103182,1723826826250,-500.0,0.00030317,7]
[335103183,1723826826275,-500.0,0.00030683,7]
[335103184,1723826826298,-500.0,0.00030764,7]
[335103185,1723826826321,-500.0,0.00030905,7]
[335103186,1723826826346,-41769.152974,0.00031,10]
[335103187,1723826826370,-500.0,0.00031407,7]
[335103188,1723826826395,-500.0,0.00031539,7]
[335103189,1723826826420,-500.0,0.00031564,7]
[335103190,1723826826445,-500.0,0.00031972,7]
[335103191,1723826826470,-500.0,0.00032326,7]
[335103192,1723826826495,-500.0,0.00032427,7]
[335103193,1723826826522,-500.0,0.00032757,7]
[335103194,1723826826546,-500.0,0.00033567,7]
[335103195,1723826826569,-500.0,0.00034659,7]
[335103196,1723826826595,-150.09979626,0.00036096,7]
[335103197,1723826832110,-349.90020374,0.00036096,7]
[335103198,1723826832135,-500.0,0.00036437,7]
[335103199,1723826832159,-500.0,0.00036819,7]
[335103200,1723826832183,-500.0,0.00037991,7]
[335103201,1723826832205,-5000.0,0.00038027,14]
[335103202,1723826832227,-151.0,0.0004,120]
[335103203,1723826832252,-39838.05539091,0.0004,120]
[335103204,1723826832277,-500.0,0.00041441,30]
[335103205,1723826832299,-500.0,0.00041985,30]
[335103206,1723826832321,-500.0,0.00042083,30]
[335103207,1723826832345,-500.0,0.00042267,30]
[335103208,1723826832369,-500.0,0.00042307,30]
[335103209,1723826832393,-500.0,0.00043217,30]
[335103210,1723826832416,-500.0,0.0004356,30]
[335103211,1723826832440,-500.0,0.00043889,30]
[335103212,1723826832465,-500.0,0.00044446,30]
[335103213,1723826832489,-500.0,0.00044579,30]
[335103214,1723826832514,-700.0,0.00044793,30]
[335103215,1723826832543,-11194.69134707,0.00045,2]
[335103216,1723826832569,-500.0,0.0004531,30]
[335103217,1723826832597,-159.21,0.000463,39]
[335103218,1723826832622,-500.0,0.00046408,30]
[335103219,1723826832646,-500.0,0.00046562,30]
[335103220,1723826832670,-1159.66782451,0.0005,60]
[335103221,1723826832693,-182.66170831,0.0005,4]
[335103222,1723826832719,-151.0,0.0005,120]
[335103223,1723826832746,-3000.0,0.00051,85]
[335103224,1723826832771,-3000.0,0.0005101,85]
[335103225,1723826832802,-3000.0,0.0005102,85]
[335103226,1723826832826,-3000.0,0.0005103,85]
[335103227,1723826832849,-3000.0,0.0005104,85]
[335103228,1723826832872,-3000.0,0.0005105,85]
[335103229,1723826833017,-3000.0,0.0005106,85]
[335103230,1723826833045,-3000.0,0.0005107,85]
[335103231,1723826833066,-5068.491525,0.0005108,85]
[335103232,1723826833088,-150.0,0.00056,120]
[335103233,1723826833111,-186.439999,0.00057,120]
[335103234,1723826833133,-151.0,0.0006,120]
[335103235,1723826833155,-150.0,0.00062,120]
[335103236,1723826833178,-150.0,0.00063,120]
[335103237,1723826833200,-200.0,0.00064,120]
[335103238,1723826833222,-3781.79208768,0.0006898,10]
[335103239,1723826833245,-3000.0,0.00069,120]
[335103240,1723826833268,-3000.0,0.0006901,120]
[335103241,1723826833296,-3000.0,0.0006902,120]
[335103242,1723826833321,-3000.0,0.0006903,120]
[335103243,1723826833344,-5441.094915,0.0006904,120]
[335103244,1723826833366,-151.0,0.0007,120]
[335103245,1723826833388,-5000.0,0.0007,120]
[335103246,1723826833410,-1937.899435,0.0008,120]
[335103247,1723826833433,-4.23151278,0.0008,120]
[335103248,1723826833467,-146.76848722,0.0008,120]
[335103249,1723826833489,-307.0,0.0009,120]
[335103250,1723826833509,-2000.0,0.000945,120]
[335103251,1723826833534,-151.0,0.001,120]
[335103252,1723826833560,-165.878951,0.00136986,120]
[335103253,1723826833582,-1000.0,0.00145,120]
[335103254,1723826833603,-1000.0,0.00145,120]
[335103255,1723826833624,-5000.0,0.00145,120]
[335103256,1723826833644,-557.16587878,0.00175,120]
[335103258,1723826845137,-557.99974265,0.00041341,28]
[335103259,1723826845158,-442.83412122,0.00175,120]
[335103260,1723826845178,-1000.0,0.00195,120]
[335103261,1723826845199,-1000.0,0.00215,120]
[335103262,1723826845220,-1000.0,0.00235,120]
[335103263,1723826845241,-1000.0,0.00245,120]
[335103264,1723826845262,-4941.970839,0.0025,120]
[335103265,1723826845286,-1000.0,0.00255,120]
[335103266,1723826845308,-2000.0,0.0026,120]
[335103267,1723826845330,-3781.79208768,0.00273963,60]
[335103268,1723826845351,-151.0,0.00273973,120]
[335103269,1723826845371,-151.0,0.00273973,120]
[335103270,1723826845393,-151.0,0.00273973,120]
[335103271,1723826845419,-199.929493,0.00273973,120]
[335103272,1723826845440,-151.0,0.00273973,120]
[335103273,1723826845461,-151.0,0.00273973,120]
[335103274,1723826845482,-151.0,0.00273973,120]
[335103275,1723826845504,-151.0,0.00273973,120]
[335103276,1723826845526,-151.0,0.00273973,120]
[335103277,1723826845549,-151.0,0.00273973,120]
[335103278,1723826845569,-151.0,0.00273973,120]
[335103279,1723826845590,-291.983362,0.00273973,120]
[335103280,1723826845611,-151.0,0.00273973,120]
[335103281,1723826845632,-151.0,0.00273973,120]
[335103282,1723826845653,-151.0,0.00273973,120]
[335103283,1723826845674,-151.0,0.00273973,120]
[335103284,1723826845694,-151.0,0.00273973,120]
[335103285,1723826845714,-153.876601,0.00273973,120]
[335103286,1723826845735,-309.860864,0.00273973,120]
[335103287,1723826845756,-309.860864,0.00273973,120]
[335103288,1723826845776,-309.860864,0.00273973,120]
[335103289,1723826845797,-309.860864,0.00273973,120]
[335103290,1723826845818,-309.860864,0.00273973,120]
[335103291,1723826845839,-309.860864,0.00273973,120]
[335103292,1723826845859,-309.860864,0.00273973,120]
[335103293,1723826845881,-309.860864,0.00273973,120]
[335103294,1723826845906,-309.860864,0.00273973,120]
[335103295,1723826845927,-309.860864,0.00273973,120]
[335103296,1723826845947,-309.860864,0.00273973,120]
[335103297,1723826845968,-309.860864,0.00273973,120]
[335103298,1723826845989,-309.860864,0.00273973,120]
[335103299,1723826846009,-309.860864,0.00273973,120]
[335103300,1723826846033,-309.860864,0.00273973,120]
[335103301,1723826846054,-309.860864,0.00273973,120]
[335103302,1723826846077,-309.860864,0.00273973,120]
[335103303,1723826846100,-309.860864,0.00273973,120]
[335103304,1723826846121,-309.860864,0.00273973,120]
[335103305,1723826846143,-151.0,0.00273973,120]
[335103306,1723826846165,-177.059266,0.00273973,120]
[335103307,1723826846186,-177.059266,0.00273973,120]
[335103308,1723826846207,-177.059266,0.00273973,120]
[335103309,1723826846228,-177.059266,0.00273973,120]
[335103310,1723826846248,-177.059266,0.00273973,120]
[335103311,1723826846269,-177.059266,0.00273973,120]
[335103312,1723826846295,-177.059266,0.00273973,120]
[335103313,1723826846317,-177.059266,0.00273973,120]
[335103314,1723826846338,-177.059266,0.00273973,120]
[335103315,1723826846360,-177.059266,0.00273973,120]
[335103316,1723826846387,-177.059266,0.00273973,120]
[335103317,1723826846410,-177.059266,0.00273973,120]
[335103318,1723826846433,-177.059266,0.00273973,120]
[335103319,1723826846455,-177.059266,0.00273973,120]
[335103320,1723826846478,-177.059266,0.00273973,120]
[335103321,1723826846500,-177.059266,0.00273973,120]
[335103322,1723826846523,-177.059266,0.00273973,120]